Cogmind - Beta 16 @@@ ROGUE MODE // 2026.01.11 @ 01:39:51 Player: UberDoot Result: Destroyed by Shrapnel Trap Performance ------------- Evolutions (0) 0 Regions Visited (3) 600 Robots Destroyed (30) 150 Value Destroyed (701) 701 Prototype IDs (14) 280 Alien Tech Used (0) 0 Bonus (0) 0 TOTAL SCORE: 1731 Bonus ------- None Cogmind --------- Core Integrity 0/250 Matter 300/300 Energy 196/200 System Corruption 5% Temperature Cool (2) Movement Treading (240) Ox1 Location -10/Subcaves Parts ------- > --- POWER (1) -------- Subdweller Power Source > --- PROPULSION (2) --- Light Treads Light Treads > --- UTILITY (2) ------ High-capacity Storage Unit > --- WEAPON (2) ------- Subdweller Laser Beam Cannon > --- INVENTORY (20) --- Heavy Ion Engine Subdweller Power Source Meta Core Light Treads Light Treads Wheel Subdweller Monowheel Improved Heat Sink Improved Heat Sink Disposable Heat Sink Huge Storage Unit Medium Matter Pod (100) Subdweller Optics Improved Terrain Scanner Light Armor Plating Makeshift Kinetic Plating Subdweller Laser Beam Cannon Light Assault Rifle Hammer Peak State ------------ > --- POWER ------------ Heavy Ion Engine > --- PROPULSION ------- Light Treads Light Treads > --- UTILITY ---------- Improved Heat Sink Large Storage Unit > --- WEAPON ----------- Particle Gun Beam Cannon > --- INVENTORY -------- Heavy Ion Engine Light Treads Light Treads Light Treads Wheel Improved Heat Sink Huge Storage Unit Medium Matter Pod Improved Terrain Scanner Seismic Detector Light Armor Plating Beam Cannon Beam Cannon Hammer [Rating: 14] Favorites ----------- Power Heavy Ion Engine Engine Heavy Ion Engine Propulsion Light Treads Treads Light Treads Leg Aluminum Leg Utility Seismic Detector Device Seismic Detector Storage Large Storage Unit Weapon Beam Cannon Energy Gun Subdweller Laser Energy Cannon Beam Cannon Ballistic Gun Assault Rifle Special Weapon Mining Laser Impact Weapon Hammer Build | -11 -10 -10 -10 ------- Run | Yrd Mat Min Sub Slots Evolved . | . . . . Power . | . . . . Propulsion . | . . . . Utility . | . . . . Weapon . | . . . . Parts Attached 31 | 7 11 3 10 Power 6 | 1 2 . 3 Engine 6 | 1 2 . 3 Core . | . . . . Reactor . | . . . . Propulsion 6 | 2 2 . 2 Treads 4 | . 2 . 2 Leg 2 | 2 . . . Wheel . | . . . . Hover . | . . . . Flight . | . . . . Utility 8 | 2 3 2 1 Device 4 | 1 1 2 . Storage 4 | 1 2 . 1 Processor . | . . . . Hackware . | . . . . Protection . | . . . . Artifact . | . . . . Weapon 11 | 2 4 1 4 Energy Gun 3 | . . 1 2 Energy Cannon 4 | . 2 . 2 Ballistic Gun 2 | 2 . . . Ballistic Cannon . | . . . . Launcher . | . . . . Special Weapon 1 | . 1 . . Impact Weapon 1 | . 1 . . Slashing Weapon . | . . . . Piercing Weapon . | . . . . Special Melee Weapon . | . . . . Unidentified Prototypes . | . . . . Parts Lost 7 | . 1 1 5 Power . | . . . . Propulsion 2 | . . . 2 Utility 1 | . . . 1 Weapon 4 | . 1 1 2 Highest Loss Streak 2 | . 1 1 2 To Critical Strikes . | . . . . Average Backups 13 | 4 11 14 18 Power 1 | . . 1 2 Propulsion 3 | 2 2 4 4 Utility 5 | . 4 6 7 Weapon 3 | 1 3 3 3 Tool/Special . | . . . . Unused Backups 29 | 2 10 1 16 Power 5 | . 4 . 1 Propulsion 7 | 2 1 . 4 Utility 8 | . . . 8 Weapon 8 | . 5 1 2 Tool/Special 1 | . . . 1 Average Slot Usage (%) 99 | . 99 99 99 Engine 14 | . 14 14 14 Treads 21 | . 11 28 27 Leg 6 | . 16 . . Device 14 | . 14 14 14 Storage 14 | . 14 14 14 Energy Gun 4 | . . 4 13 Energy Cannon 12 | . 10 14 14 Ballistic Gun 10 | . 16 9 . Peak Build Rating 14 | 8 11 14 14 Average Rating 10 | 5 8 12 12 On Entrance 8 | . 7 11 14 Avg Prop Armor Cover (%) . | . . . . Naked Turns . | . . . . Heaviest Build 56 | 15 34 35 56 Greatest Support 40 | 20 40 40 40 Greatest Overweight (x) 1 | . 1 . 1 Average Overweight (x) . | . . . . Largest Inventory Capacity 20 | 8 15 15 20 Average Capacity 14 | 7 11 15 19 Most Carried 20 | 8 15 15 20 Average Carried 13 | 4 11 14 18 Final Capacity 20 | 8 15 15 20 Final Carried 20 | 6 15 15 20 Class Distribution -------------------- 80% | Mutant 19% | Scavenger-Mutant Dominant Class ---------------- Mutant | -10/Materials Mutant | -10/Mines Scavenger-Mutant | -10/Subcaves Resources | -11 -10 -10 -10 ----------- Run | Yrd Mat Min Sub Matter Collected 1106 | 302 494 147 163 Remotely . | . . . . Salvage Created 1225 | 103 693 125 304 Parts 64 | 7 39 2 16 Haulers Intercepted 2 | . 2 . . Recyclers Shooed 3 | 2 1 . . Parts Field Recycled . | . . . . Retrieved Matter . | . . . . Parts Self-Destructed 18 | . . . 18 Prevented . | . . . . Parts Restored . | . . . . Kills | -11 -10 -10 -10 ------- Run | Yrd Mat Min Sub Combat Hostiles Destroyed 26 | . 12 7 7 Guns 15 | . 9 5 1 Cannons 10 | . 3 2 5 Classes Destroyed 10 | 2 5 1 2 Worker 1 | . 1 . . Tunneler 2 | 2 . . . Hauler 2 | . 2 . . Recycler 3 | 1 2 . . Watcher 2 | . 2 . . Swarmer 6 | . 6 . . Grunt 7 | . 6 1 . Sentry 1 | . . . 1 Subdweller 6 | . . . 6 Assembled 6 | . . 6 . Best Kill Streak 6 | 2 6 2 2 Combat Bots Only 3 | . 3 2 2 Max Kills in Single Turn 1 | 1 1 1 1 Gunslinging . | . . . . Exploded . | . . . . Melee . | . . . . Uniques/NPCs Destroyed . | . . . . Combat | -11 -10 -10 -10 -------- Run | Yrd Mat Min Sub Hostile Shots Fired 137 | . 72 18 47 Missed 28 | . 18 4 6 Hits 109 | . 54 14 41 Melee 5 | . . 5 . Projectile 104 | . 54 9 41 AOE 2 | . . . 2 Critical Strikes 3 | . 1 . 2 Part Disruptions 1 | . . 1 . Damage Taken 1948 | . 613 264 1071 Core 285 | . 15 70 200 Absorbed by Shields . | . . . . Core Remaining (%) 100 | 100 . . . Volleys Fired 121 | 14 56 20 31 Largest 2 | 2 2 2 2 Hottest 160 | 40 160 125 125 Shots Fired 234 | 28 109 36 61 Gun 146 | 28 71 18 29 Cannon 86 | . 36 18 32 Launcher . | . . . . Special 2 | . 2 . . Kinetic 106 | 28 71 7 . Thermal 128 | . 38 29 61 Explosive . | . . . . Electromagnetic . | . . . . Robot Hit Streak 14 | 7 14 9 7 Robot Miss Streak 3 | 3 2 3 2 Penetration Max . | . . . . Secondary Targets 2 | . 2 . . Max Gunslinging Chain 1 | . 1 . . Shots Hit Robots 153 | 16 69 23 45 Core Hits 55 | 4 26 14 11 Critical Kills 1 | . . . 1 Critical Parts Destroyed . | . . . . Critical Strikes 4 | . . . 4 Burn 2 | . . . 2 Meltdown 1 | . . . 1 Destroy 1 | . . . 1 Melee Attacks 1 | . 1 . . Impact 1 | . 1 . . Slashing . | . . . . Piercing . | . . . . Sneak Attacks . | . . . . Combat Hostiles . | . . . . Follow-up Attacks . | . . . . Damage Inflicted 2400 | 215 1017 357 811 Guns 1334 | 215 529 198 392 Cannons 1066 | . 488 159 419 Explosions . | . . . . Melee . | . . . . Ramming . | . . . . Kinetic 817 | 215 529 73 . Thermal 1583 | . 488 284 811 Explosive . | . . . . Electromagnetic . | . . . . Impact . | . . . . Slashing . | . . . . Piercing . | . . . . Highest Corruption 5 | . . 5 5 Average Corruption 5 | . . 5 5 Corruption Purged . | . . . . Corruption Blocked . | . . . . Effects 35 | . . 13 22 Message Errors 7 | . . 2 5 Matter Fused 5 | . . 3 2 Heat Flow Errors 10 | . . 3 7 Energy Discharges 3 | . . . 3 Parts Rejected 1 | . . . 1 Data Loss (minor) 4 | . . 3 1 Data Loss (major) 2 | . . . 2 Misfires 2 | . . 1 1 Alerts 1 | . . 1 . Overload Shots . | . . . . Overflow Damage . | . . . . Projectiles . | . . . . Explosions . | . . . . Melee . | . . . . Knockbacks . | . . . . Impact . | . . . . Kinetic . | . . . . Secondary . | . . . . Self-Inflicted Damage . | . . . . Shots . | . . . . Rammed . | . . . . Targets Rammed . | . . . . Kicked . | . . . . Crushed . | . . . . Highest Temperature 246 | 6 195 246 228 Average Temperature 65 | 6 57 61 104 Received Heat Transfer 525 | . 249 114 162 Siege Activations . | . . . . Martial Activations . | . . . . Shielding Activations . | . . . . Robots Disrupted . | . . . . Combat Hostiles . | . . . . Robots Corrupted . | . . . . Combat Hostiles . | . . . . Parts Fried . | . . . . Impact Corruptions . | . . . . Robots Melted 1 | . . . 1 Combat Hostiles 1 | . . . 1 Parts Melted 6 | . 1 . 5 Heat Transferred 3456 | . 1036 629 1791 Parts Sabotaged . | . . . . Parts Stolen . | . . . . Parts Stripped . | . . . . Power Chain Reactions . | . . . . Alert | -11 -10 -10 -10 ------- Run | Yrd Mat Min Sub Maximum Alert Level . | . . . . Low Security (%) 100 | 100 100 100 . Level 1 . | . . . . Level 2 . | . . . . Level 3 . | . . . . Level 4 . | . . . . Level 5 . | . . . . High Security . | . . . . Max Security . | . . . . Peak Influence 110 | 5 110 35 . Initial . | . . . . Average 19 | 1 37 1 . Influence Increases 470 | 15 390 45 20 Destroy 0b10 Robot/C 280 | . 240 20 20 Destroy 0b10 Robot/NC 50 | 15 35 . . Destroy Leader 78 | . 68 10 . Successful Hack 13 | . 13 . . Disable Machine 15 | . 15 . . Destroy Structure 4 | . 4 . . Lose Combat Pursuer 30 | . 15 15 . Influence Decreases 470 | 15 390 45 20 Time Decay 405 | 15 325 45 20 Purge Threat 65 | . 65 . . Squads Dispatched 3 | . 3 . . Investigation 1 | . 1 . . Extermination . | . . . . Reinforcement 2 | . 2 . . Assault . | . . . . Garrison . | . . . . Intercept . | . . . . Searches Triggered . | . . . . Construction Impeded . | . . . . Haulers Reinforced . | . . . . Active Scanning Responses . | . . . . Cargo Convoy Interrupts . | . . . . Stealth | -11 -10 -10 -10 --------- Run | Yrd Mat Min Sub Distress Signals 1 | . 1 . . Communications Jammed . | . . . . Distress Signals . | . . . . Times Spotted 38 | . 20 11 7 Peak Tracking Total 3 | . 3 2 2 Tactical Retreats 4 | . 1 3 . Traps | -11 -10 -10 -10 ------- Run | Yrd Mat Min Sub Traps Triggered 4 | . 1 . 3 Indirectly . | . . . . Trap Hack Attempts . | . . . . Triggered . | . . . . Disarmed . | . . . . Reprogrammed . | . . . . Reused . | . . . . Traps Extracted . | . . . . Installed . | . . . . Triggered . | . . . . Machines | -11 -10 -10 -10 ---------- Run | Yrd Mat Min Sub Machines Disabled 2 | . 1 . 1 Max in Single Turn 1 | . 1 . 1 Machines Repaired . | . . . . Machines Dismantled . | . . . . Machines Sabotaged . | . . . . Overloaded Fab Kills . | . . . . Hacking | -11 -10 -10 -10 --------- Run | Yrd Mat Min Sub Machines Accessed 6 | . 5 . 1 Terminals 4 | . 4 . . Fabricators . | . . . . Repair Stations . | . . . . Recycling Units 1 | . 1 . . Scanalyzers . | . . . . Garrison Access . | . . . . Total Hacks 28 | . 19 . 9 Successful 19 | . 10 . 9 Failed 9 | . 9 . . Catastrophic 2 | . 2 . . Database Lockouts . | . . . . Manual 14 | . 14 . . Terminals 18 | . 18 . . Fabricators . | . . . . Repair Stations . | . . . . Recycling Units 1 | . 1 . . Scanalyzers . | . . . . Garrison Access . | . . . . Terminal Hacks 14 | . 5 . 9 Record 8 | . . . 8 Part Schematic 2 | . 2 . . Robot Schematic 1 | . 1 . . Prototype ID Bank 1 | . 1 . . Unreport Threat 1 | . 1 . . Proto ID Catalog 1 | . . . 1 Fabricator Hacks . | . . . . Repair Station Hacks . | . . . . Recycling Unit Hacks 1 | . 1 . . Retrieve Components 1 | . 1 . . Scanalyzer . | . . . . Garrison Access Hacks . | . . . . Unauthorized Hacks 4 | . 4 . . Terminals 4 | . 4 . . Botnet 2 | . 2 . . Skim 2 | . 2 . . Fabricators . | . . . . Repair Stations . | . . . . Recycling Units . | . . . . Scanalyzers . | . . . . Garrison Access . | . . . . Data Cores Recovered . | . . . . Used . | . . . . Hacking Detections 4 | . 4 . . Full Trace Events . | . . . . Feedback Events . | . . . . Feedback Blocked . | . . . . Robot Schematics Acquired 1 | . 1 . . Robots Built . | . . . . Authchips . | . . . . Time . | . . . . Total Robot Build Rating . | . . . . Part Schematics Acquired 2 | . 2 . . Parts Built . | . . . . Authchips . | . . . . Time . | . . . . Total Part Build Rating . | . . . . Part Studies Acquired . | . . . . Parts Repaired . | . . . . Time . | . . . . Parts Recycled . | . . . . Recycled Matter . | . . . . Retrieved Matter . | . . . . Retrieved Components 9 | . 9 . . Parts Scanalyzed . | . . . . Part Schematics Acquired . | . . . . Parts Damaged . | . . . . Bothacking | -11 -10 -10 -10 ------------ Run | Yrd Mat Min Sub Used RIF Installer . | . . . . Robots Hacked . | . . . . Non-combat . | . . . . Combat . | . . . . Robot Hacks Applied . | . . . . Relay Couplers Released . | . . . . Fabnet Peak Effective % . | . . . . Robots Rewired . | . . . . Allies Hacked . | . . . . Hacks Repelled . | . . . . Allies | -11 -10 -10 -10 -------- Run | Yrd Mat Min Sub Total Allies . | . . . . Largest Group . | . . . . Highest-Rated Group . | . . . . Highest-Rated Ally . | . . . . Total Orders . | . . . . Ally Attacks . | . . . . Total Damage . | . . . . Kills . | . . . . Allies Corrupted . | . . . . Allies Melted . | . . . . Intel | -11 -10 -10 -10 ------- Run | Yrd Mat Min Sub Active Infowar (turns) 2773 | 74 1311 850 538 Seismic 2773 | 74 1311 850 538 Robot Analysis Total . | . . . . Derelict Logs Recovered 2 | . . 2 . Drone Launches . | . . . . Drone Recoveries . | . . . . Exploration | -11 -10 -10 -10 ------------- Run | Yrd Mat Min Sub Turns Passed 3956 | 141 1528 1355 932 Spaces Moved 1617 | 69 710 505 333 Core 5 | 5 . . . Treads 1171 | . 333 505 333 Legs 441 | 64 377 . . Wheels . | . . . . Hover . | . . . . Flight . | . . . . Fastest Speed 50 | 50 120 160 160 Average Speed 166 | 114 145 160 232 Slowest Speed 240 | 120 190 160 240 Overloaded Moves . | . . . . Propulsion Burnouts . | . . . . Robots Hopped . | . . . . Potential Cave-ins . | . . . . Cave-ins Triggered . | . . . . Exploration Rate (%) 49 | 6 92 74 24 Regions Visited 3 Branch Regions 2 Pre-discovered Areas 2 | . . 1 1 Known Exits Taken . | . . . . Unknown Exits Taken 3 | 1 1 1 . Scrap Searched 4 | . . 2 2 Spaces Dug 3 | . 3 . . Terrain Destroyed 3 | . 3 . . Melee 1 | . 1 . . Projectile 2 | . 2 . . AOE . | . . . . Terrain Rammed . | . . . . Walls Destroyed . | . . . . Machines Disabled . | . . . . Actions | -11 -10 -10 -10 --------- Run | Yrd Mat Min Sub Total 2639 | 100 1096 1017 426 Wait 779 | 1 267 480 31 Move 1614 | 68 709 504 333 Hop . | . . . . Pick Up 44 | 8 25 2 9 Fast Attach 10 | 7 1 . 2 Attach 10 | . 4 1 5 Detach 4 | . 2 . 2 Swap 28 | . 12 7 9 Drop 28 | 2 19 3 4 Fire 121 | 14 56 20 31 Melee 1 | . 1 . . Ram . | . . . . Kick . | . . . . Crush . | . . . . Escape Stasis . | . . . . Rewire . | . . . . Trap . | . . . . Miscellaneous . | . . . . Route ------- -11/Scrapyard -10/Materials (discovered 4 exits: [*Mat x3] / [*Min]) -10/Mines -10/Subcaves History --------- Turn | Location | Event 3 | -11/Scrapyard | Discovered new exit (range 15) 142 | -11/Scrapyard | Entered Materials 314 | -10/Materials | Build established: Mutant 339 | -10/Materials | Discovered new exit (range 3) 572 | -10/Materials | Discovered new exit (range 11) 1335 | -10/Materials | Discovered new exit (range 11) 1438 | -10/Materials | Discovered new exit (range 6) 1670 | -10/Materials | Entered Mines 2057 | -10/Mines | Found a hidden stash of uninstalled traps 2159 | -10/Mines | Assembled infested the area 2673 | -10/Mines | Learned location of Zion (-7) 2881 | -10/Mines | Discovered new exit (range 13) 3025 | -10/Mines | Entered Subcaves 3026 | -10/Subcaves | Approached by a straggling Scientist 3082 | -10/Subcaves | Core integrity fell below 50% 3350 | -10/Subcaves | Met a Zionite searching for "candidates" 3463 | -10/Subcaves | Build established: Scavenger-Mutant 3497 | -10/Subcaves | Core integrity fell below 20% 3543 | -10/Subcaves | Ambushed by Subdweller buried in earth 3682 | -10/Subcaves | Visited 4L-MR0's lab 3711 | -10/Subcaves | Found Meta Core 3812 | -10/Subcaves | A swath of the cavern ceiling suddenly collapsed 3957 | -10/Subcaves | Destroyed by Shrapnel Trap Last Messages --------------- 03725_ >NGG2Z8>5C T=ATWKZ 03906_ System corrupted: Heat flow error (+222). 03941_ System corrupted: Energy discharge (-42). 03949_ Triggered Piercing Trap. 03949_ Spikes shoot up from the floor. 03952_ Triggered Piercing Trap. 03952_ Spikes shoot up from the floor. 03952_ Critical hit (Impale). 03952_ Seismic Detector destroyed. 03952_ Critical hit (Impale). 03957_ Triggered Shrapnel Trap. 03957_ An expanding cloud of shrapnel blasts out in all directions. Map ----- +----------------------------------------------------+ | ?????????????????????????????????????????????????? | | ?????????????????????????????????????????????????? | | ?????????????????????????????????????????????????? | | ?????????????????????????????????????????????????? | | ?????????????????????????????????????????????????? | | ?????????????????????????????????????????????????? | | ?????????????????????????????????????????????????? | | ?????????????????????????????????????????????????? | | ?????????????????????????????????????????????????? | | ?????????????????????????????????????????????????? | | ?###########?????????????????????????????????????? | | ?# ## #???????????????####??????????????????? | | ?# #?########???## #??????????????????? | | ### ### "### ??????????????????? | | # """""" ????#?? ??????????? | | " """" "???? # ??????????? | | ## ## """ #### ?????????? | | # ## ### ### #???""" # ???????????? | | #### ##?# ####?### #####""# """?????????????? | | ???###?# ##?????# # # """?????????????? | | ???????####??????## " #????????????????????? | | ??????????????????# ### # ##???????????????????? | | ??????????????????###?###^ #???????????????????? | | ???????????????????????# #???????????????????? | | ??????????????????????## ##???????????????????? | | ??????????????????????#""@ #????????????????????? | | ????????????????????# ###????????????????????? | | ????????????????????## #??????????????????????? | | ?????????????????????# ??????????????????????? | | ?????????????????????# ^ ??????????????????????? | | ????????????????????? ??????????????????????? | | ???????????????????? ## ??????????????????????? | | ??????????????????? #?####?????????????????????? | | ??????????????????# ???????????????????????????? | | ??????????????????# ???????????????????????????? | | ??????????????????## ????????????????????????????? | | ???????????????????##????????????????????????????? | | ?????????????????????????????????????????????????? | | ?????????????????????????????????????????????????? | | ?????????????????????????????????????????????????? | | ?????????????????????????????????????????????????? | | ?????????????????????????????????????????????????? | | ?????????????????????????????????????????????????? | | ?????????????????????????????????????????????????? | | ?????????????????????????????????????????????????? | | ?????????????????????????????????????????????????? | | ?????????????????????????????????????????????????? | | ?????????????????????????????????????????????????? | | ?????????????????????????????????????????????????? | | ?????????????????????????????????????????????????? | +----------------------------------------------------+ Best States ------------- Heat Dissipation 39 Energy Generation 15 Energy Capacity 280 Matter Stores 300 Matter Capacity 300 Sight Range 16 Terrain Scan Density 10 Evasion (%) 55 Recoil Reduction 2 Item Schematics ----------------- Hcp. Storage Unit | -10/Materials | Hacked Huge Storage Unit | -10/Materials | Hacked Robot Schematics ------------------ M-13 Machinist | -10/Materials | Hacked Fabricated ------------ Nothing Repaired ---------- Nothing Studied --------- None Alien Tech Used ----------------- None Achievements -------------- Do Not Disturb Challenges ------------ None Game ------ Seed LightShockboltGreatsword Manual? 0 Play Time 00:20:40 Cumulative 241.2 hours Start 2025.11.14 @ 22:08:59 End 2026.01.11 @ 01:39:51 Sessions 5 Manual Loads 0 Difficulty Rogue Special Mode None Game No. 130 Rogue 130 Adventurer 0 Explorer 0 Win Type - Total 5 Types 3/0/2/0/0/0/0/0/0/0 Lore% 75 Gallery% 71 Achievement% 46 Wizard Run 0 Options --------- Layout 1 ASCII 0 Keyboard 1 Movement Numpad Keybinds 0 Fullscreen 2 Font 24/Terminus Map View 50x40 Zoom Use 0% Tactical HUD 1 Map Filters NONE Filters NONE Steam 1 RUN: 6f6eff83-2cfd-4e0f-8dbc-7085d54ba647